[Event "European Online Club-ch-G 2021"]
[Site "Online"]
[Date "2021.03.27"]
[Round "5.2"]
[White "Danaci, Ege"]
[Black "Tazbir, Marcin"]
[Result "0-1"]
[ECO "B48"]
[WhiteElo "1996"]
[BlackElo "2513"]
[Annotator "ChessBase"]
[PlyCount "130"]
[EventDate "2021.03.27"]
[EventType "team-tourn"]
[EventCountry "NET"]
[SourceTitle "playchess.com"]
[Source "ChessBase"]
[SourceQuality "1"]
[TimeControl "900+5"]

1. e4 {[%emt 0:00:00]} c5 {[%emt 0:00:04]} 2. Nf3 {[%emt 0:00:03]} e6 {[%emt 0:00:35]} 3. d4 {[%emt 0:00:02]} cxd4 {[%emt 0:00:02]} 4. Nxd4 {[%emt 0:00:02]} Nc6 {[%emt 0:00:02]} 5. Nc3 {[%emt 0:00:05]} Qc7 {[%emt 0:00:04]} 6. Be3 {[%emt 0:00:02]} Nf6 {[%emt 0:00:03]} 7. Bd3 {[%emt 0:00:01]} a6 {[%emt 0:00:06]} 8. O-O {[%emt 0:00:02]} Nxd4 {[%emt 0:00:25]} 9. Bxd4 {[%emt 0:00:03]} Bc5 {[%emt 0:00:03]} 10. Be2 {[%emt 0:00:45]} d6 {[%emt 0:00:31]} 11. Bxf6 {[%emt 0:00:22]} gxf6 {[%emt 0:00:03]} 12. Qd3 {[%emt 0:00:02]} b5 {[%emt 0:00:14]} 13. Qf3 {[%emt 0:02:33]} Bd4 {[%emt 0:00:13]} 14. Rad1 {[%emt 0:01:32]} Be5 {[%emt 0:00:03]} 15. Qd3 {[%emt 0:00:21]} Bb7 {[%emt 0:00:30]} 16. f4 {[%emt 0:01:01]} Bxc3 {[%emt 0:00:03]} 17. bxc3 {[%emt 0:00:01]} O-O-O {[%emt 0:00:05]} 18. a4 {[%emt 0:00:38]} Qc5+ {[%emt 0:00:37]} 19. Qd4 {[%emt 0:01:00]} Bxe4 {[%emt 0:00:48]} 20. axb5 {[%emt 0:00:13]} axb5 {[%emt 0:00:03]} 21. Bxb5 {[%emt 0:00:56]} Rhg8 {[%emt 0:00:10]} 22. Ba6+ {[%emt 0:00:45]} Kc7 {[%emt 0:00:04]} 23. Rf2 {[%emt 0:00:05]} f5 {[%emt 0:00:37]} 24. Bd3 {[%emt 0:01:53]} Bc6 {[%emt 0:00:07]} 25. Bf1 {[%emt 0:00:44]} Qxd4 {[%emt 0:00:37]} 26. cxd4 {[%emt 0:00:03]} Ra8 {[%emt 0:00:08]} 27. c4 {[%emt 0:00:13]} Be4 {[%emt 0:00:08]} 28. d5 {[%emt 0:00:49]} Rgb8 {[%emt 0:01:24]} 29. Rfd2 {[%emt 0:00:35]} exd5 {[%emt 0:00:08]} 30. cxd5 {[%emt 0:00:03]} Rb4 {[%emt 0:00:19]} 31. Bd3 {[%emt 0:00:47]} Rd4 {[%emt 0:01:11]} 32. Bxe4 {[%emt 0:01:04]} Rxd2 {[%emt 0:00:04]} 33. Rxd2 {[%emt 0:00:02]} fxe4 {[%emt 0:00:01]} 34. f5 {[%emt 0:00:14]} e3 {[%emt 0:00:04]} 35. Rc2+ {[%emt 0:00:03]} Kd7 {[%emt 0:00:06]} 36. Kf1 {[%emt 0:00:01]} Ra5 {[%emt 0:00:08]} 37. Ke2 {[%emt 0:00:37]} Rxd5 {[%emt 0:00:03]} 38. Kxe3 {[%emt 0:00:01]} Rxf5 {[%emt 0:00:02]} 39. Ra2 {[%emt 0:00:07]} Ke6 {[%emt 0:00:02]} 40. Ke4 {[%emt 0:00:13]} h5 {[%emt 0:00:07]} 41. Rb2 {[%emt 0:00:12]} f6 {[%emt 0:00:16]} 42. Ra2 {[%emt 0:00:06]} Rb5 {[%emt 0:00:02]} 43. Rc2 {[%emt 0:00:06]} Ra5 {[%emt 0:00:03]} 44. Rb2 {[%emt 0:00:02]} Ra4+ {[%emt 0:00:02]} 45. Ke3 {[%emt 0:00:01]} Ke5 {[%emt 0:00:01]} 46. Rc2 {[%emt 0:00:10]} d5 {[%emt 0:00:07]} 47. Rc8 {[%emt 0:00:06]} Ra3+ {[%emt 0:00:04]} 48. Ke2 {[%emt 0:00:04]} Kf4 {[%emt 0:00:11]} 49. g3+ {[%emt 0:00:08]} Ke4 {[%emt 0:00:10]} 50. Re8+ {[%emt 0:00:02]} Kd4 {[%emt 0:00:02]} 51. Rh8 {[%emt 0:00:06]} Ra2+ {[%emt 0:00:02]} 52. Kf3 {[%emt 0:00:02]} Rxh2 {[%emt 0:00:02]} 53. Rf8 {[%emt 0:00:02]} Ke5 {[%emt 0:00:02]} 54. Re8+ {[%emt 0:00:02]} Kf5 {[%emt 0:00:02]} 55. Rc8 {[%emt 0:00:03]} Ra2 {[%emt 0:00:04]} 56. Rc3 {[%emt 0:00:08]} Ra4 {[%emt 0:00:21]} 57. Rc5 {[%emt 0:00:03]} Ra3+ {[%emt 0:00:03]} 58. Kf2 {[%emt 0:00:02]} Ke4 {[%emt 0:00:03]} 59. Rc2 {[%emt 0:00:02]} d4 {[%emt 0:00:05]} 60. Re2+ {[%emt 0:00:02]} Re3 {[%emt 0:00:02]} 61. Rd2 {[%emt 0:00:01]} Rf3+ {[%emt 0:00:02]} 62. Kg2 {[%emt 0:00:02]} d3 {[%emt 0:00:07]} 63. Rd1 {[%emt 0:00:05]} Rf5 {[%emt 0:00:02]} 64. Re1+ {[%emt 0:00:02]} Kd4 {[%emt 0:00:02]} 65. Re8 {[%emt 0:00:11]} d2 {[%emt 0:00:03]} 0-1

[Event "European Online Club-ch-G 2021"]
[Site "Online"]
[Date "2021.03.27"]
[Round "5.3"]
[White "Wieczorek, Oskar"]
[Black "Yildirim, Ibrahim Halil"]
[Result "1-0"]
[ECO "B18"]
[WhiteElo "2498"]
[BlackElo "1783"]
[Annotator "ChessBase"]
[PlyCount "35"]
[EventDate "2021.03.27"]
[EventType "team-tourn"]
[EventCountry "NET"]
[SourceTitle "playchess.com"]
[Source "ChessBase"]
[SourceQuality "1"]
[TimeControl "900+5"]

1. e4 {[%emt 0:00:00]} c6 {[%emt 0:00:02]} 2. d4 {[%emt 0:00:02]} d5 {[%emt 0:00:01]} 3. Nd2 {[%emt 0:00:01]} dxe4 {[%emt 0:00:02]} 4. Nxe4 {[%emt 0:00:00]} Bf5 {[%emt 0:00:01]} 5. Ng3 {[%emt 0:00:02]} Bg6 {[%emt 0:00:00]} 6. c3 {[%emt 0:00:01]} Nf6 {[%emt 0:00:06]} 7. Nh3 {[%emt 0:00:02]} e6 {[%emt 0:00:04]} 8. Nf4 {[%emt 0:00:02]} Bd6 {[%emt 0:00:01]} 9. h4 {[%emt 0:00:03]} Qc7 {[%emt 0:00:05]} 10. Qf3 {[%emt 0:00:03]} Bc2 {[%emt 0:01:52]} 11. Be3 {[%emt 0:01:57]} h6 {[%emt 0:00:34]} 12. Ngh5 {[%emt 0:00:46]} Nxh5 {[%emt 0:00:43]} 13. Nxh5 {[%emt 0:00:00]} O-O {[%emt 0:01:14]} 14. Bxh6 {[%emt 0:01:17]} Bg6 {[%emt 0:00:25]} 15. Nxg7 {[%emt 0:00:34]} e5 {[%emt 0:00:12]} 16. h5 {[%emt 0:00:40]} Bh7 {[%emt 0:00:20]} 17. Qg4 {[%emt 0:00:59]} Kh8 {[%emt 0:01:26]} 18. Ne8 {[%emt 0:00:17]} 1-0

[Event "European Online Club-ch-G 2021"]
[Site "Online"]
[Date "2021.03.27"]
[Round "5.4"]
[White "Ozata, Doruk"]
[Black "Zawadzka, Jolanta"]
[Result "0-1"]
[ECO "B26"]
[WhiteElo "1646"]
[BlackElo "2399"]
[Annotator "NA"]
[PlyCount "58"]
[EventDate "2021.03.27"]
[EventType "team-tourn"]
[EventCountry "NET"]
[SourceTitle "playchess.com"]
[Source "ChessBase"]
[SourceQuality "1"]
[TimeControl "900+5"]

1. e4 {[%emt 0:00:00]} c5 {[%emt 0:00:05]} 2. Nc3 {[%emt 0:00:19]} Nc6 {[%emt 0:00:04]} 3. g3 {[%emt 0:00:03]} g6 {[%emt 0:00:03]} 4. Bg2 {[%emt 0:00:01]} Bg7 {[%emt 0:00:01]} 5. d3 {[%emt 0:00:01]} e6 {[%emt 0:00:02]} 6. Be3 {[%emt 0:00:02]} d6 {[%emt 0:00:02]} 7. Qd2 {[%emt 0:00:03]} Rb8 {[%emt 0:00:19]} 8. Nge2 {[%emt 0:00:36]} Nd4 {[%emt 0:00:02]} 9. Nd1 {[%emt 0:00:03]} Ne7 {[%emt 0:00:13]} 10. O-O {[%emt 0:00:16]} O-O {[%emt 0:00:02]} 11. c3 {[%emt 0:00:37]} Nxe2+ {[%emt 0:00:04]} 12. Qxe2 {[%emt 0:00:03]} b5 {[%emt 0:00:01]} 13. f4 {[%emt 0:00:09]} b4 {[%emt 0:00:06]} 14. g4 {[%emt 0:00:15]} f5 {[%emt 0:00:15]} 15. h3 {[%emt 0:01:20]} bxc3 {[%emt 0:00:18]} 16. bxc3 {[%emt 0:00:03]} Qa5 {[%emt 0:00:40]} 17. Rc1 {[%emt 0:00:36]} Bd7 {[%emt 0:02:37]} 18. d4 {[%emt 0:03:14]} cxd4 {[%emt 0:00:12]} 19. cxd4 {[%emt 0:01:10]} Bb5 {[%emt 0:00:07]} 20. Qf2 {[%emt 0:01:21]} Bxf1 {[%emt 0:00:13]} 21. Bxf1 {[%emt 0:00:09]} fxe4 {[%emt 0:00:05]} 22. Bc4 {[%emt 0:00:47]} d5 {[%emt 0:01:15]} 23. Bb3 {[%emt 0:00:03]} Rfc8 {[%emt 0:00:05]} 24. Rxc8+ {[%emt 0:00:09]} Rxc8 {[%emt 0:00:02]} 25. Nb2 {[%emt 0:00:13]} Qc3 {[%emt 0:01:24]} 26. Na4 {[%emt 0:00:10]} Qa1+ {[%emt 0:00:05]} 27. Kg2 {[%emt 0:00:17]} Nc6 {[%emt 0:01:35]} 28. f5 {[%emt 0:00:45]} gxf5 {[%emt 0:00:17]} 29. gxf5 {[%emt 0:00:04]} Rf8 {[%emt 0:00:03]} 0-1

[Event "European Online Club-ch-G 2021"]
[Site "Online"]
[Date "2021.03.27"]
[Round "5.5"]
[White "Gazik, Viktor"]
[Black "Dreev, Aleksey"]
[Result "0-1"]
[ECO "B30"]
[WhiteElo "2542"]
[BlackElo "2647"]
[Annotator "ChessBase"]
[PlyCount "68"]
[EventDate "2021.03.27"]
[EventType "team-tourn"]
[EventCountry "NET"]
[SourceTitle "playchess.com"]
[Source "ChessBase"]
[SourceQuality "1"]
[TimeControl "900+5"]

1. e4 {[%emt 0:00:00]} c5 {[%emt 0:00:11]} 2. Nc3 {[%emt 0:00:10]} e6 {[%emt 0:00:12]} 3. Nf3 {[%emt 0:00:03]} Nc6 {[%emt 0:00:04]} 4. Bb5 {[%emt 0:00:08]} Nd4 {[%emt 0:00:03]} 5. O-O {[%emt 0:00:05]} a6 {[%emt 0:00:13]} 6. Bd3 {[%emt 0:00:03]} Nc6 {[%emt 0:00:02]} 7. b3 {[%emt 0:00:33]} d6 {[%emt 0:00:11]} 8. Bb2 {[%emt 0:00:11]} Nf6 {[%emt 0:00:03]} 9. Re1 {[%emt 0:00:02]} e5 {[%emt 0:00:16]} 10. Bc4 {[%emt 0:00:13]} Be7 {[%emt 0:01:04]} 11. Nd5 {[%emt 0:00:14]} O-O {[%emt 0:00:06]} 12. c3 {[%emt 0:00:06]} Bg4 {[%emt 0:00:13]} 13. h3 {[%emt 0:00:14]} Bh5 {[%emt 0:00:03]} 14. a4 {[%emt 0:00:10]} Rb8 {[%emt 0:01:09]} 15. Qe2 {[%emt 0:03:44]} Nxd5 {[%emt 0:00:57]} 16. Bxd5 {[%emt 0:00:38]} Bf6 {[%emt 0:00:02]} 17. Bc4 {[%emt 0:03:41]} b5 {[%emt 0:00:40]} 18. axb5 {[%emt 0:00:50]} axb5 {[%emt 0:00:04]} 19. Bxb5 {[%emt 0:00:00]} Bxf3 {[%emt 0:00:02]} 20. gxf3 {[%emt 0:00:00]} Ne7 {[%emt 0:00:02]} 21. Bc4 {[%emt 0:00:11]} Ng6 {[%emt 0:00:04]} 22. Qf1 {[%emt 0:00:37]} Nh4 {[%emt 0:01:11]} 23. Re3 {[%emt 0:00:50]} Bg5 {[%emt 0:00:23]} 24. Rd3 {[%emt 0:00:02]} Qf6 {[%emt 0:00:04]} 25. Qe2 {[%emt 0:00:12]} Ng6 {[%emt 0:01:31]} 26. Qf1 {[%emt 0:00:31]} Nf4 {[%emt 0:00:25]} 27. Re3 {[%emt 0:00:02]} Kh8 {[%emt 0:01:07]} 28. Ra6 {[%emt 0:01:07]} Qh6 {[%emt 0:01:53]} 29. Kh2 {[%emt 0:00:02]} f5 {[%emt 0:00:01]} 30. d4 {[%emt 0:01:27]} Qh4 {[%emt 0:00:03]} 31. Bc1 {[%emt 0:00:54]} Rf6 {[%emt 0:00:22]} 32. dxe5 {[%emt 0:00:05]} Rh6 {[%emt 0:00:07]} 33. Rxd6 {[%emt 0:00:06]} g6 {[%emt 0:00:16]} 34. exf5 {[%emt 0:00:31]} Nxh3 {[%emt 0:00:06]} 0-1

[Event "European Online Club-ch-G 2021"]
[Site "Online"]
[Date "2021.03.27"]
[Round "5.6"]
[White "Piorun, Kacper"]
[Black "Sahidi, Samir"]
[Result "0-1"]
[ECO "A12"]
[WhiteElo "2615"]
[BlackElo "2407"]
[Annotator "ChessBase"]
[PlyCount "130"]
[EventDate "2021.03.27"]
[EventType "team-tourn"]
[EventCountry "NET"]
[SourceTitle "playchess.com"]
[Source "ChessBase"]
[SourceQuality "1"]
[TimeControl "900+5"]

1. Nf3 {[%emt 0:00:00]} Nf6 {[%emt 0:00:15]} 2. g3 {[%emt 0:00:04]} d5 {[%emt 0:00:10]} 3. Bg2 {[%emt 0:00:07]} c6 {[%emt 0:00:55]} 4. b3 {[%emt 0:00:11]} Bf5 {[%emt 0:01:02]} 5. Bb2 {[%emt 0:00:06]} h6 {[%emt 0:00:19]} 6. c4 {[%emt 0:00:04]} e6 {[%emt 0:00:09]} 7. O-O {[%emt 0:00:03]} Be7 {[%emt 0:00:10]} 8. d3 {[%emt 0:00:01]} O-O {[%emt 0:00:01]} 9. Nbd2 {[%emt 0:00:02]} Nbd7 {[%emt 0:00:19]} 10. Rc1 {[%emt 0:00:05]} a5 {[%emt 0:01:00]} 11. a3 {[%emt 0:00:06]} Re8 {[%emt 0:00:17]} 12. Rc2 {[%emt 0:00:06]} c5 {[%emt 0:01:17]} 13. cxd5 {[%emt 0:02:17]} exd5 {[%emt 0:00:13]} 14. Qa1 {[%emt 0:00:15]} a4 {[%emt 0:01:13]} 15. bxa4 {[%emt 0:02:44]} c4 {[%emt 0:01:46]} 16. Rc3 {[%emt 0:00:37]} cxd3 {[%emt 0:01:15]} 17. exd3 {[%emt 0:00:03]} Nc5 {[%emt 0:00:05]} 18. Nd4 {[%emt 0:01:40]} Bg6 {[%emt 0:01:12]} 19. Qb1 {[%emt 0:00:52]} Nxa4 {[%emt 0:00:14]} 20. Rb3 {[%emt 0:00:04]} Qa5 {[%emt 0:00:36]} 21. N2f3 {[%emt 0:00:11]} Nxb2 {[%emt 0:00:26]} 22. Rxb2 {[%emt 0:00:08]} Qxa3 {[%emt 0:00:44]} 23. Ne5 {[%emt 0:00:59]} Qc3 {[%emt 0:00:29]} 24. Ndf3 {[%emt 0:01:15]} Bh5 {[%emt 0:00:35]} 25. Rxb7 {[%emt 0:02:19]} Bxf3 {[%emt 0:00:45]} 26. Nxf3 {[%emt 0:00:04]} Bd6 {[%emt 0:00:19]} 27. Rc1 {[%emt 0:00:39]} Qa3 {[%emt 0:00:07]} 28. Nd4 {[%emt 0:00:21]} Qa2 {[%emt 0:00:39]} 29. Nf5 {[%emt 0:00:29]} Qxb1 {[%emt 0:00:08]} 30. Rcxb1 {[%emt 0:00:15]} Bf8 {[%emt 0:00:03]} 31. R7b5 {[%emt 0:00:13]} Ra3 {[%emt 0:00:17]} 32. Rd1 {[%emt 0:00:13]} Rd8 {[%emt 0:00:08]} 33. Ne3 {[%emt 0:00:04]} d4 {[%emt 0:00:05]} 34. Nc4 {[%emt 0:00:03]} Ra2 {[%emt 0:00:09]} 35. Bf3 {[%emt 0:00:15]} g6 {[%emt 0:00:04]} 36. Ne5 {[%emt 0:00:12]} Bg7 {[%emt 0:00:21]} 37. Rb7 {[%emt 0:00:16]} Rf8 {[%emt 0:00:03]} 38. Rc1 {[%emt 0:00:10]} Ra5 {[%emt 0:00:09]} 39. Nc4 {[%emt 0:00:18]} Rc5 {[%emt 0:00:02]} 40. Ra1 {[%emt 0:00:05]} Nd5 {[%emt 0:00:04]} 41. Raa7 {[%emt 0:00:08]} Nc3 {[%emt 0:00:11]} 42. Nd6 {[%emt 0:00:05]} h5 {[%emt 0:00:05]} 43. h4 {[%emt 0:00:11]} Be5 {[%emt 0:00:07]} 44. Nxf7 {[%emt 0:00:06]} Bg7 {[%emt 0:00:01]} 45. Ng5 {[%emt 0:00:04]} Bh6 {[%emt 0:00:04]} 46. Kg2 {[%emt 0:00:04]} Rcf5 {[%emt 0:00:06]} 47. Rd7 {[%emt 0:00:11]} Nb5 {[%emt 0:00:04]} 48. Rab7 {[%emt 0:00:02]} Nc3 {[%emt 0:00:01]} 49. Rbc7 {[%emt 0:00:02]} Re8 {[%emt 0:00:10]} 50. Nf7 {[%emt 0:00:06]} Bf8 {[%emt 0:00:04]} 51. Nd6 {[%emt 0:00:05]} Bxd6 {[%emt 0:00:03]} 52. Rxd6 {[%emt 0:00:01]} Ref8 {[%emt 0:00:02]} 53. Rxg6+ {[%emt 0:00:02]} Kh8 {[%emt 0:00:01]} 54. Rh6+ {[%emt 0:00:06]} Kg8 {[%emt 0:00:01]} 55. Bxh5 {[%emt 0:00:03]} Rxf2+ {[%emt 0:00:01]} 56. Kh3 {[%emt 0:00:01]} Nd5 {[%emt 0:00:02]} 57. Rg6+ {[%emt 0:00:03]} Kh8 {[%emt 0:00:02]} 58. Rh6+ {[%emt 0:00:01]} Kg8 {[%emt 0:00:01]} 59. Rd7 {[%emt 0:00:15]} Ne3 {[%emt 0:00:07]} 60. Rg6+ {[%emt 0:00:08]} Kh8 {[%emt 0:00:01]} 61. Rh6+ {[%emt 0:00:01]} Kg8 {[%emt 0:00:01]} 62. Rdd6 {[%emt 0:00:09]} R8f5 {[%emt 0:00:05]} 63. Rdg6+ {[%emt 0:00:06]} Kf8 {[%emt 0:00:02]} 64. Bg4 {[%emt 0:00:12]} Rf1 {[%emt 0:00:03]} 65. Bf3 {[%emt 0:00:11]} R5xf3 {[%emt 0:00:04]} 0-1

[Event "European Online Club-ch-G 2021"]
[Site "Online"]
[Date "2021.03.27"]
[Round "5.7"]
[White "Kostolansky, Sebastian Lukas"]
[Black "Shchekachev, Andrei"]
[Result "1/2-1/2"]
[ECO "B08"]
[WhiteElo "2393"]
[BlackElo "2515"]
[Annotator "ChessBase"]
[PlyCount "131"]
[EventDate "2021.03.27"]
[EventType "team-tourn"]
[EventCountry "NET"]
[SourceTitle "playchess.com"]
[Source "ChessBase"]
[SourceQuality "1"]
[TimeControl "900+5"]

1. e4 {[%emt 0:00:00]} Nc6 {[%emt 0:00:16]} 2. Nf3 {[%emt 0:00:34]} d6 {[%emt 0:00:05]} 3. d4 {[%emt 0:00:18]} Nf6 {[%emt 0:00:02]} 4. Nc3 {[%emt 0:00:45]} g6 {[%emt 0:00:02]} 5. Be2 {[%emt 0:01:11]} Bg7 {[%emt 0:00:04]} 6. O-O {[%emt 0:00:04]} O-O {[%emt 0:00:03]} 7. Be3 {[%emt 0:00:33]} a6 {[%emt 0:00:23]} 8. a4 {[%emt 0:01:57]} e5 {[%emt 0:00:11]} 9. dxe5 {[%emt 0:00:54]} dxe5 {[%emt 0:00:05]} 10. Qxd8 {[%emt 0:00:56]} Rxd8 {[%emt 0:00:14]} 11. Rfd1 {[%emt 0:00:34]} Bg4 {[%emt 0:01:37]} 12. h3 {[%emt 0:01:04]} Bxf3 {[%emt 0:00:04]} 13. Bxf3 {[%emt 0:00:11]} Nd4 {[%emt 0:00:23]} 14. Bxd4 {[%emt 0:01:35]} exd4 {[%emt 0:00:05]} 15. Nd5 {[%emt 0:00:02]} Nd7 {[%emt 0:02:58]} 16. Nxc7 {[%emt 0:02:15]} Rac8 {[%emt 0:00:04]} 17. Nd5 {[%emt 0:00:01]} Rxc2 {[%emt 0:00:03]} 18. b4 {[%emt 0:00:04]} d3 {[%emt 0:01:01]} 19. Rac1 {[%emt 0:01:47]} Bh6 {[%emt 0:01:11]} 20. Ne3 {[%emt 0:00:30]} Rxc1 {[%emt 0:00:38]} 21. Rxc1 {[%emt 0:00:01]} Ne5 {[%emt 0:00:03]} 22. Kf1 {[%emt 0:00:27]} Kg7 {[%emt 0:00:22]} 23. Rd1 {[%emt 0:00:19]} Rd4 {[%emt 0:01:38]} 24. Ng4 {[%emt 0:00:32]} Nxg4 {[%emt 0:00:05]} 25. hxg4 {[%emt 0:00:02]} d2 {[%emt 0:00:07]} 26. b5 {[%emt 0:00:03]} Rxa4 {[%emt 0:00:19]} 27. bxa6 {[%emt 0:00:02]} bxa6 {[%emt 0:00:24]} 28. g3 {[%emt 0:00:02]} Ra2 {[%emt 0:02:03]} 29. Bg2 {[%emt 0:00:04]} Bg5 {[%emt 0:00:12]} 30. Ke2 {[%emt 0:00:04]} a5 {[%emt 0:00:29]} 31. f4 {[%emt 0:00:06]} Be7 {[%emt 0:00:09]} 32. Rxd2 {[%emt 0:00:10]} Rxd2+ {[%emt 0:00:13]} 33. Kxd2 {[%emt 0:00:02]} g5 {[%emt 0:00:02]} 34. e5 {[%emt 0:00:15]} Bc5 {[%emt 0:00:12]} 35. Ke2 {[%emt 0:00:09]} Bd4 {[%emt 0:00:15]} 36. Bd5 {[%emt 0:00:06]} h6 {[%emt 0:00:04]} 37. Bb3 {[%emt 0:00:04]} Kf8 {[%emt 0:00:04]} 38. Kf3 {[%emt 0:00:05]} Ke7 {[%emt 0:00:03]} 39. Ke4 {[%emt 0:00:03]} Bf2 {[%emt 0:00:04]} 40. Kf3 {[%emt 0:00:01]} Be1 {[%emt 0:00:01]} 41. Kg2 {[%emt 0:00:04]} Bc3 {[%emt 0:00:26]} 42. Kf3 {[%emt 0:00:03]} Bb4 {[%emt 0:00:08]} 43. Ke4 {[%emt 0:00:04]} Be1 {[%emt 0:00:08]} 44. Kf3 {[%emt 0:00:01]} f6 {[%emt 0:00:04]} 45. exf6+ {[%emt 0:00:29]} Kxf6 {[%emt 0:00:02]} 46. Kg2 {[%emt 0:00:04]} Ke7 {[%emt 0:00:06]} 47. Kf3 {[%emt 0:00:04]} Kd6 {[%emt 0:00:03]} 48. f5 {[%emt 0:00:08]} Bc3 {[%emt 0:00:06]} 49. Ke4 {[%emt 0:00:02]} Be5 {[%emt 0:00:05]} 50. Kd3 {[%emt 0:00:07]} Kc5 {[%emt 0:00:05]} 51. Ke4 {[%emt 0:00:02]} Bxg3 {[%emt 0:00:30]} 52. f6 {[%emt 0:00:02]} Kd6 {[%emt 0:00:33]} 53. Kf5 {[%emt 0:00:06]} Be5 {[%emt 0:00:15]} 54. Kg6 {[%emt 0:00:04]} Bc3 {[%emt 0:00:17]} 55. Kf5 {[%emt 0:00:11]} Bb2 {[%emt 0:00:06]} 56. Kg6 {[%emt 0:00:03]} Bc3 {[%emt 0:00:06]} 57. Kf5 {[%emt 0:00:01]} Ba1 {[%emt 0:00:05]} 58. Kg6 {[%emt 0:00:03]} Bb2 {[%emt 0:00:07]} 59. f7 {[%emt 0:00:11]} Ke7 {[%emt 0:00:06]} 60. Kxh6 {[%emt 0:00:02]} Kf8 {[%emt 0:00:07]} 61. Kxg5 {[%emt 0:00:05]} Bc3 {[%emt 0:00:02]} 62. Kg6 {[%emt 0:00:02]} Bb2 {[%emt 0:00:02]} 63. g5 {[%emt 0:00:02]} Bc3 {[%emt 0:00:02]} 64. Kf5 {[%emt 0:00:02]} a4 {[%emt 0:00:03]} 65. Bxa4 {[%emt 0:00:02]} Kxf7 {[%emt 0:00:03]} 66. Bb3+ {[%emt 0:00:04]} 1/2-1/2

[Event "European Online Club-ch-G 2021"]
[Site "Online"]
[Date "2021.03.27"]
[Round "5.8"]
[White "Flom, Gabriel"]
[Black "Haring, Filip"]
[Result "0-1"]
[ECO "A67"]
[WhiteElo "2474"]
[BlackElo "2376"]
[Annotator "ChessBase"]
[PlyCount "114"]
[EventDate "2021.03.27"]
[EventType "team-tourn"]
[EventCountry "NET"]
[SourceTitle "playchess.com"]
[Source "ChessBase"]
[SourceQuality "1"]
[TimeControl "900+5"]

1. d4 {[%emt 0:00:00]} Nf6 {[%emt 0:00:05]} 2. c4 {[%emt 0:00:02]} c5 {[%emt 0:00:02]} 3. d5 {[%emt 0:00:02]} e6 {[%emt 0:00:02]} 4. Nc3 {[%emt 0:00:02]} exd5 {[%emt 0:00:01]} 5. cxd5 {[%emt 0:00:02]} d6 {[%emt 0:00:01]} 6. e4 {[%emt 0:00:22]} g6 {[%emt 0:00:06]} 7. f4 {[%emt 0:00:02]} Bg7 {[%emt 0:00:04]} 8. Bb5+ {[%emt 0:00:02]} Nfd7 {[%emt 0:00:15]} 9. a4 {[%emt 0:00:04]} Na6 {[%emt 0:00:12]} 10. Nf3 {[%emt 0:00:02]} Nb4 {[%emt 0:00:04]} 11. O-O {[%emt 0:00:04]} a6 {[%emt 0:00:09]} 12. Be2 {[%emt 0:00:28]} O-O {[%emt 0:00:25]} 13. Re1 {[%emt 0:00:03]} f5 {[%emt 0:03:26]} 14. e5 {[%emt 0:00:06]} dxe5 {[%emt 0:00:41]} 15. d6 {[%emt 0:00:02]} e4 {[%emt 0:01:11]} 16. Bc4+ {[%emt 0:00:03]} Kh8 {[%emt 0:00:05]} 17. Ng5 {[%emt 0:00:01]} Nb6 {[%emt 0:02:13]} 18. Nf7+ {[%emt 0:00:03]} Rxf7 {[%emt 0:00:02]} 19. Bxf7 {[%emt 0:00:01]} Qf6 {[%emt 0:02:57]} 20. Qb3 {[%emt 0:01:51]} Qxd6 {[%emt 0:01:18]} 21. a5 {[%emt 0:00:42]} Nd7 {[%emt 0:00:57]} 22. Be3 {[%emt 0:00:16]} Nf6 {[%emt 0:01:00]} 23. h3 {[%emt 0:01:51]} Bd7 {[%emt 0:00:15]} 24. Red1 {[%emt 0:00:05]} Qe7 {[%emt 0:00:22]} 25. Bc4 {[%emt 0:00:04]} Bc6 {[%emt 0:00:22]} 26. Rd2 {[%emt 0:00:33]} h5 {[%emt 0:00:35]} 27. Rad1 {[%emt 0:00:03]} Kh7 {[%emt 0:00:02]} 28. Na2 {[%emt 0:00:12]} Nd3 {[%emt 0:00:15]} 29. Qa3 {[%emt 0:00:52]} Re8 {[%emt 0:00:06]} 30. Nc1 {[%emt 0:00:27]} Bd5 {[%emt 0:00:07]} 31. Bxd3 {[%emt 0:00:19]} exd3 {[%emt 0:00:02]} 32. Bxc5 {[%emt 0:00:11]} Qe4 {[%emt 0:00:08]} 33. Qxd3 {[%emt 0:00:05]} Qxf4 {[%emt 0:00:03]} 34. Ne2 {[%emt 0:00:14]} Qc7 {[%emt 0:00:09]} 35. Bb6 {[%emt 0:00:08]} Qc6 {[%emt 0:00:03]} 36. Nc3 {[%emt 0:00:07]} Be4 {[%emt 0:00:06]} 37. Qd6 {[%emt 0:00:04]} Qc4 {[%emt 0:00:06]} 38. Bd4 {[%emt 0:00:14]} Re6 {[%emt 0:00:04]} 39. Qd8 {[%emt 0:00:08]} Re8 {[%emt 0:00:05]} 40. Qd6 {[%emt 0:00:15]} Re6 {[%emt 0:00:02]} 41. Qa3 {[%emt 0:00:23]} Bh6 {[%emt 0:00:02]} 42. Re2 {[%emt 0:02:40]} Nd5 {[%emt 0:00:13]} 43. Ree1 {[%emt 0:00:08]} Nxc3 {[%emt 0:00:04]} 44. Bxc3 {[%emt 0:00:10]} Bc6 {[%emt 0:00:06]} 45. Rxe6 {[%emt 0:00:57]} Qxe6 {[%emt 0:00:01]} 46. Re1 {[%emt 0:00:38]} Be3+ {[%emt 0:00:06]} 47. Kh1 {[%emt 0:00:38]} Bxg2+ {[%emt 0:00:03]} 48. Kh2 {[%emt 0:00:33]} Bc6 {[%emt 0:00:04]} 49. Qf8 {[%emt 0:00:23]} Bf4+ {[%emt 0:00:06]} 50. Kg1 {[%emt 0:00:02]} Be3+ {[%emt 0:00:03]} 51. Kf1 {[%emt 0:00:10]} Qc4+ {[%emt 0:00:11]} 52. Re2 {[%emt 0:00:03]} Qf4+ {[%emt 0:00:03]} 53. Ke1 {[%emt 0:00:03]} Qg3+ {[%emt 0:00:06]} 54. Kd1 {[%emt 0:00:01]} Ba4+ {[%emt 0:00:02]} 55. Rc2 {[%emt 0:00:06]} Qf3+ {[%emt 0:00:11]} 56. Ke1 {[%emt 0:00:03]} Bf2+ {[%emt 0:00:04]} 57. Kf1 {[%emt 0:00:13]} Bb5+ {[%emt 0:00:02]} 0-1